[Event "BCS-Floripa Super Blitz 2025"]
[Site "Florianopolis"]
[Date "2025.01.22"]
[Round "5.9"]
[White "Ticona Rocabado, Licael Roderick"]
[Black "Pessoa, Vitor Henrique Leopo"]
[Result "1-0"]
[Annotator "TA"]
[ECO "E97"]
[WhiteElo "2322"]
[BlackElo "1835"]
[PlyCount "57"]
[EventDate "2025.01.18"]
[EventType "swiss"]
[EventCountry "BRA"]
[SourceTitle "playchess.com"]
[Source "ChessBase"]
[SourceQuality "1"]
[TimeControl "180+2"]

{[%evp 25,57,29,34,19,19,-9,16,-30,-35,-30,-25,-149,-96,-103,-113,-127,-85,-92,-43,-37,8,-50,91,-35,36,35,194,0,138,51,343,300,1503,1447]} 1. d4 {[%emt 0:00:01]} Nf6 {[%emt 0:00:01]} 2. c4 {[%emt 0:00:01]} g6 {[%emt 0:00:02]} 3. Nc3 {[%emt 0:00:02]} Bg7 {[%emt 0:00:01]} 4. e4 {[%emt 0:00:01]} d6 {[%emt 0:00:01]} 5. Nf3 {[%emt 0:00:01]} O-O {[%emt 0:00:05]} 6. Be2 {[%emt 0:00:02]} e5 {[%emt 0:00:08]} 7. O-O {[%emt 0:00:02]} Nc6 {[%emt 0:00:03]} 8. d5 {[%emt 0:00:01]} Ne7 {[%emt 0:00:00]} 9. b4 {[%emt 0:00:00]} a5 {[%emt 0:00:13]} 10. bxa5 {[%emt 0:00:01]} Rxa5 {[%emt 0:00:01]} 11. a4 {[%emt 0:00:01]} Ne8 {[%emt 0:00:22]} 12. Ba3 {[%emt 0:00:01]} b6 {[%emt 0:00:06]} 13. Bb4 {[%emt 0:00:01]} Ra8 {[%emt 0:00:02]} 14. Nd2 {[%emt 0:00:04]} f5 {[%emt 0:00:06]} 15. f3 {[%emt 0:00:01]} Nf6 {[%emt 0:00:10]} 16. a5 {[%emt 0:00:01]} (16. Kh1 $142) 16... c5 $1 $11 {[%emt 0:00:44]} 17. dxc6 {[%emt 0:00:19]} Nxc6 {[%emt 0:00:02]} (17... bxa5 $6 18. Nb5 Qb6+ 19. Kh1 $16) 18. Qb3 {[%emt 0:00:09]} (18. Ba3 $11) 18... Nd4 {[%emt 0:00:11]} (18... Nxa5 $6 19. Qc2 $11) (18... bxa5 $6 19. Bxd6 Nd4 (19... Qxd6 20. c5+ Be6 21. cxd6 $16) 20. Qa3 $11) (18... Nxb4 19. axb6 Rb8 (19... Rxa1 20. Rxa1 Nc6 21. b7 $15) 20. Qxb4 $15 (20. c5+ Kh8 $17)) (18... Bh6 $142 $1 {[%cal Rb6a5] and ...bxa5! would now be decisive} 19. c5+ Kg7 20. cxb6 Bxd2) 19. Qd1 {[%emt 0:00:31]} bxa5 {[%emt 0:00:12]} 20. Ba3 {[%emt 0:00:01]} Ba6 {[%emt 0:00:11]} 21. Nb5 {[%emt 0:00:11]} Nxe2+ {[%emt 0:00:18]} (21... Bxb5 $17 22. cxb5 fxe4 23. fxe4 Rb8) 22. Qxe2 $15 {[%emt 0:00:01]} Qd7 {[%emt 0:00:21]} 23. Rfd1 {[%emt 0:00:04]} (23. Bxd6 Rfd8 24. Bxe5 Bxb5 (24... Qxd2 25. Qxd2 Rxd2 26. Rxa5 $17) 25. cxb5 Qxd2 $17) (23. Nxd6 $11 Nh5 24. Rfd1) 23... Rfc8 {[%emt 0:00:03]} (23... Rfd8 $1 $15) 24. Rab1 {[%emt 0:00:01]} (24. Bxd6 $2 Bxb5 25. cxb5 Qxd6 $19) (24. Nxd6 $16 Rc6 25. Nf1 fxe4 26. fxe4) 24... Qe6 {[%emt 0:00:03]} (24... d5 $15) 25. Nxd6 {[%emt 0:00:04]} (25. Bxd6 $2 Bxb5 26. cxb5 Qxd6 $19) 25... Rd8 $2 {[%emt 0:00:12] [#]} (25... Rc6 $14) 26. Nb5 $2 {[%emt 0:00:05] Excellent horsemanship.} (26. Nb3 $1 $18 {[%cal Rb3c5] Hoping for Nc5.} fxe4 27. Nc5 exf3 28. gxf3 Bxc4 29. Qc2 (29. Nxc4 Qf5 $18) (29. Qxc4 Qxc4 30. Nxc4 Rxd1+ 31. Rxd1 Nh5 $18) 29... Rxd6 30. Nxe6 Rxd1+ 31. Qxd1 (31. Rxd1 Bxe6 32. Qc7 h6 $18) 31... Bxe6 32. Qd6) 26... fxe4 {[%emt 0:00:02] [#]} (26... Rd7 $11 {remains equal.}) 27. Nxe4 {[%emt 0:00:08]} (27. Nc7 $1 $16 {[%cal Rc7e6]} exf3 28. Nxf3 (28. Nxe6 $2 {is the wrong capture.} fxe2 29. Nxg7 exd1=B $19) (28. Qxf3 e4 $18) 28... Qxc4 (28... Rxd1+ $2 29. Qxd1 Qf5 30. Nxa8 $18) 29. Nxa8 (29. Qxe5 Rxd1+ 30. Rxd1 Ne8 $17) (29. Qxc4+ Bxc4 30. Nxa8 Rxa8 $16) 29... Rxa8 (29... Qxe2 $2 30. Rxd8+ $18) 30. Qxe5) 27... Rac8 $2 {[%emt 0:00:04][%mdl 8192]} (27... Rxd1+ $14 28. Rxd1 Bxb5 29. cxb5 Qb3) 28. Nc5 {[%emt 0:00:47]} Rxc5 $2 {[%emt 0:00:08]} (28... Rxd1+ 29. Qxd1 (29. Rxd1 Qb6 $16) 29... Qxc4 30. Nxa6 Qa2) 29. Rxd8+ {[%emt 0:00:01]} 1-0

[Event "BCS-Floripa Super Blitz 2025"]
[Site "Florianopolis"]
[Date "2025.01.22"]
[Round "5.9"]
[White "Da Silva, Daniel Leite"]
[Black "Hoffman, Alejandro"]
[Result "0-1"]
[Annotator "TA"]
[ECO "A07"]
[WhiteElo "2007"]
[BlackElo "2368"]
[PlyCount "130"]
[EventDate "2025.01.18"]
[EventType "swiss"]
[EventCountry "BRA"]
[SourceTitle "playchess.com"]
[Source "ChessBase"]
[SourceQuality "1"]
[TimeControl "180+2"]

{[%evp 22,130,-31,-40,-35,-58,-42,-147,-126,-133,-93,-95,-90,-176,-36,-52,-48,-77,-54,-63,-70,-159,-47,-163,-81,-76,-43,-165,-127,-113,6,-83,7,0,0,0,0,0,5,5,6,-16,9,7,10,6,13,0,35,34,35,13,52,34,34,0,0,0,0,0,0,0,0,0,0,0,0,0,0,0,0,0,0,0,0,0,0,-87,-106,-114,-81,-89,0,0,0,-8,39,62,745,635,903,1050,1198,1091,899,972,1423,1383,1087,1087,4949,4085,29969,2377,29975,29976,29974,29979,29980,29980,29986]} 1. Nf3 {[%emt 0:00:02]} d5 {[%emt 0:00:01]} 2. g3 {[%emt 0:00:03]} Nf6 {[%emt 0:00:03]} 3. Bg2 {[%emt 0:00:02]} c6 {[%emt 0:00:02]} 4. O-O {[%emt 0:00:03]} Bf5 {[%emt 0:00:02]} 5. d3 {[%emt 0:00:02]} e6 {[%emt 0:00:02]} 6. Nbd2 {[%emt 0:00:04]} h6 {[%emt 0:00:03]} 7. Qe1 {[%emt 0:00:02]} Be7 {[%emt 0:00:02]} 8. e4 {[%emt 0:00:02]} Bh7 {[%emt 0:00:02]} 9. Qe2 {[%emt 0:00:01]} O-O {[%emt 0:00:02]} 10. c4 {[%emt 0:00:01]} a5 {[%emt 0:00:12][%cal Ba7a5,Ba5a4][%mdl 32]} 11. b3 {[%emt 0:00:04]} a4 {[%emt 0:00:02]} 12. Bb2 {[%emt 0:00:01]} Na6 {[%emt 0:00:04]} 13. Rfe1 {[%emt 0:00:07]} Re8 {[%emt 0:00:03]} 14. Bd4 {[%emt 0:00:19]} (14. Red1 $15) 14... Nb4 $17 {[%emt 0:00:07]} 15. Rec1 {[%emt 0:00:16] Dodges Nc2} dxe4 {[%emt 0:00:24]} 16. dxe4 {[%emt 0:00:03]} c5 {[%emt 0:00:02]} 17. Bc3 {[%emt 0:00:07]} (17. Bxf6 $17 {keeps fighting.} Bxf6 18. e5) 17... Nc6 {[%emt 0:00:06]} (17... axb3 $1 $19 18. axb3 Na2) 18. e5 {[%emt 0:00:07]} Nd7 $1 {[%emt 0:00:03]} 19. Re1 {[%emt 0:00:01]} Qc7 {[%emt 0:00:06]} 20. h4 {[%emt 0:00:02]} Red8 {[%emt 0:00:02]} 21. Qe3 {[%emt 0:00:29]} (21. Ne4 $15) 21... Bf8 {[%emt 0:00:08]} (21... Nb4 $17 22. Bxb4 cxb4) 22. h5 {[%emt 0:00:10]} ({White should play} 22. Ne4 $15) 22... Ndb8 {[%emt 0:00:14]} (22... Nb4 $19 {has better winning chances.} 23. Bxb4 cxb4) 23. Ne4 {[%emt 0:00:05]} Na6 {[%emt 0:00:04]} 24. Rad1 {[%emt 0:00:06]} (24. a3 $15) 24... axb3 {[%emt 0:00:03]} 25. axb3 {[%emt 0:00:01][%cal Oe4d6]} b6 {[%emt 0:00:03]} (25... Nab4 $1 $17 {[%cal Rb4c2]} 26. Rf1 Nc2) 26. Qf4 {[%emt 0:00:04]} (26. Nd6 $1 $11 {remains equal.}) 26... Bxe4 {[%emt 0:00:04]} (26... Nab4 $17 {and ...Nd3 would now be decisive} 27. Bxb4 Nxb4) 27. Qxe4 {[%emt 0:00:02][%cal Of3g5]} Nab4 {[%emt 0:00:02]} 28. Bf1 {[%emt 0:00:26]} Rxd1 {[%emt 0:00:03]} 29. Rxd1 {[%emt 0:00:01]} Rd8 $132 {[%emt 0:00:01][%mdl 2048] Black is not keeping still} 30. Rxd8 {[%emt 0:00:04]} Qxd8 {[%emt 0:00:01]} 31. Kg2 {[%emt 0:00:08]} Be7 {[%emt 0:00:02]} 32. Be2 {[%emt 0:00:08]} Qd7 {[%emt 0:00:12]} 33. Qe3 {[%emt 0:00:04]} Qd8 {[%emt 0:00:02]} 34. Qc1 {[%emt 0:00:05]} f5 {[%emt 0:00:15]} 35. exf6 {[%emt 0:00:11]} Bxf6 {[%emt 0:00:01]} 36. Qe3 {[%emt 0:00:03]} Kf7 {[%emt 0:00:04]} (36... Bxc3 {simplifies} 37. Qxc3 Qf8 38. Qd2 Qa8) 37. Bxb4 {[%emt 0:00:22]} Nxb4 {[%emt 0:00:03]} 38. Ne5+ {[%emt 0:00:00]} Bxe5 {[%emt 0:00:02]} 39. Qxe5 $11 {[%emt 0:00:01][%mdl 4096] Endgame KQB-KQN} Nc6 {[%emt 0:00:07]} 40. Qe4 {[%emt 0:00:02]} Nd4 {[%emt 0:00:01]} 41. Bg4 {[%emt 0:00:04]} Qd6 {[%emt 0:00:02]} 42. Qg6+ {[%emt 0:00:01]} Kf8 {[%emt 0:00:01]} 43. f3 {[%emt 0:00:09]} Qe5 {[%emt 0:00:06]} 44. Qd3 {[%emt 0:00:03]} Ke7 {[%emt 0:00:04]} 45. Qd1 {[%emt 0:00:03]} Qe2+ {[%emt 0:00:02]} 46. Qxe2 {[%emt 0:00:01]} Nxe2 {[%emt 0:00:02] KB-KN} 47. f4 {[%emt 0:00:02]} Nd4 {[%emt 0:00:03]} 48. Bd1 {[%emt 0:00:01]} e5 {[%emt 0:00:03]} 49. fxe5 {[%emt 0:00:03]} (49. Kf2 $1 $11) 49... Ke6 $17 {[%emt 0:00:01]} 50. Kf2 {[%emt 0:00:01]} Kxe5 {[%emt 0:00:01] Black is more active.} 51. Ke3 {[%emt 0:00:01] [#]} Nf5+ {[%emt 0:00:01]} ({Black should play} 51... Kf5 $1 $17) 52. Kf3 $11 {[%emt 0:00:03]} Kd4 {[%emt 0:00:02]} 53. Bc2 {[%emt 0:00:01]} Nd6 {[%emt 0:00:07]} (53... Ne7 $11) 54. Kf4 $14 {[%emt 0:00:05]} Nf7 $2 {[%emt 0:00:07][%mdl 8192]} (54... Kc3 $14 55. Bd1 Kd2) 55. Kf5 $18 {[%emt 0:00:02]} Ne5 {[%emt 0:01:08]} 56. Bb1 {[%emt 0:00:06]} Nd7 {[%emt 0:00:00] [#]} 57. Ke6 $1 {[%emt 0:00:02]} Nf6 {[%emt 0:00:00]} 58. Bg6 {[%emt 0:00:02]} Kc3 {[%emt 0:00:00]} 59. Kf7 {[%emt 0:00:01]} Kxb3 {[%emt 0:00:00]} 60. Kxg7 {[%emt 0:00:01]} Nd7 {[%emt 0:00:00]} 61. Kxh6 {[%emt 0:00:04] Hoping for Kg7.} Kxc4 {[%emt 0:00:00]} 62. Bf5 {[%emt 0:00:01]} (62. Kg7 $142 Kb3 63. h6 c4 64. h7 Ne5 65. h8=Q (65. h8=R Nxg6 66. Kxg6 b5 $18) 65... Nxg6 66. Kxg6 b5 67. Kf5) 62... Ne5 {[%emt 0:00:00]} 63. Kg7 {[%emt 0:00:02]} Kd4 {[%emt 0:00:00]} 64. h6 {[%emt 0:00:01][%cal Bh5h6,Bh6h7][%mdl 32]} c4 {[%emt 0:00:00]} 65. h7 {[%emt 0:00:01]} Kd5 {[%emt 0:00:20]} 0-1

[Event "BCS-Floripa Super Blitz 2025"]
[Site "Florianopolis"]
[Date "2025.01.22"]
[Round "5.10"]
[White "Nogueira, Ivan Kuhlmann"]
[Black "Silverio, Vitor Luis De Jesus"]
[Result "0-1"]
[Annotator "TA"]
[ECO "A05"]
[WhiteElo "2159"]
[BlackElo "2083"]
[PlyCount "73"]
[EventDate "2025.01.18"]
[EventType "swiss"]
[EventCountry "BRA"]
[SourceTitle "playchess.com"]
[Source "ChessBase"]
[SourceQuality "1"]
[TimeControl "180+2"]

{[%evp 15,73,0,0,0,42,21,22,16,18,12,40,0,6,0,0,0,-6,-16,8,14,34,-37,26,24,20,6,16,12,10,-4,41,31,179,192,188,139,185,178,189,178,195,181,166,158,175,172,145,141,162,177,247,65,105,74,154,106,265,199,269,197]} 1. a4 {[%emt 0:00:01]} Nf6 {[%emt 0:00:02]} 2. g3 {[%emt 0:00:01]} g6 {[%emt 0:00:01]} 3. Bg2 {[%emt 0:00:02]} Bg7 {[%emt 0:00:01]} 4. d3 {[%emt 0:00:01]} O-O {[%emt 0:00:02]} 5. Nd2 {[%emt 0:00:02]} d6 {[%emt 0:00:01]} 6. e4 {[%emt 0:00:02]} c5 {[%emt 0:00:01]} 7. Ngf3 {[%emt 0:00:01]} Nc6 {[%emt 0:00:00]} 8. O-O {[%emt 0:00:03]} Bg4 {[%emt 0:00:01]} 9. h3 {[%emt 0:00:02]} Bxf3 {[%emt 0:00:02]} 10. Bxf3 {[%emt 0:00:04]} Nd7 {[%emt 0:00:04]} 11. Bg2 {[%emt 0:00:03]} a6 {[%emt 0:00:01]} 12. f4 {[%emt 0:00:09]} Rb8 {[%emt 0:00:00]} 13. Nf3 {[%emt 0:00:12]} b5 {[%emt 0:00:02]} 14. axb5 {[%emt 0:00:01]} axb5 {[%emt 0:00:00]} 15. Kh2 {[%emt 0:00:02]} b4 {[%emt 0:00:07]} 16. h4 {[%emt 0:00:26]} Nd4 {[%emt 0:00:02] [#]} 17. h5 $1 {[%emt 0:00:11]} Qc7 {[%emt 0:00:25]} (17... Nxf3+ 18. Bxf3) 18. Rb1 {[%emt 0:00:18]} (18. Nxd4 $14 Bxd4 19. Qe1) 18... Nf6 {[%emt 0:00:17]} (18... gxh5 $15 19. Bd2 Nf6) 19. hxg6 {[%emt 0:00:11]} hxg6 {[%emt 0:00:01]} 20. Bh3 {[%emt 0:00:05]} Nxf3+ {[%emt 0:00:04]} 21. Qxf3 {[%emt 0:00:02]} c4 {[%emt 0:00:17]} 22. Rf2 {[%emt 0:00:31]} cxd3 {[%emt 0:00:01]} 23. cxd3 {[%emt 0:00:01]} Rfc8 {[%emt 0:00:05]} 24. Bxc8 $18 {[%emt 0:00:06]} Qxc8 {[%emt 0:00:01]} 25. Kg2 {[%emt 0:00:05]} ({White should try} 25. f5 $18) 25... Ng4 $16 {[%emt 0:00:04]} 26. Re2 {[%emt 0:00:03]} b3 {[%emt 0:00:22]} 27. Bd2 {[%emt 0:00:05]} Bd4 {[%emt 0:00:11]} 28. Rc1 {[%emt 0:00:10]} Qd7 {[%emt 0:00:04]} 29. Bc3 {[%emt 0:00:18]} Rc8 {[%emt 0:00:01] [#]} 30. Ree1 $1 {[%emt 0:00:19]} Bxc3 {[%emt 0:00:15]} 31. Rxc3 {[%emt 0:00:01]} Rxc3 {[%emt 0:00:01]} 32. bxc3 $18 {[%emt 0:00:01][%cal Bb2c3,Bc3c4][%mdl 32] KQR-KQN} f5 {[%emt 0:00:13]} (32... Nf6 $142 33. e5 dxe5) 33. Rb1 $2 {[%emt 0:00:06]} (33. exf5 $18 gxf5 34. Qa8+ (34. Qd5+ Kg7 $16) 34... Kg7 35. Qb8) 33... Qb5 $14 {[%emt 0:00:08]} 34. Qe2 {[%emt 0:00:05] Threatens to win with exf5.} e5 {[%emt 0:00:20]} (34... Kf8 $142) 35. fxe5 {[%emt 0:00:09]} (35. Rb2 $142) 35... Nxe5 $2 {[%emt 0:00:04]} (35... dxe5 $16 36. c4 Qb6) 36. c4 $18 {[%emt 0:00:05]} Qb6 {[%emt 0:00:09]} (36... Qb7 {is a better defense.} 37. d4 Ng4) 37. Qd1 {[%emt 0:00:00]} 0-1

[Event "BCS-Floripa Super Blitz 2025"]
[Site "Florianopolis"]
[Date "2025.01.22"]
[Round "5.10"]
[White "Ferreira, Giovani Lima Diogo"]
[Black "Garcia Martin, Marta"]
[Result "0-1"]
[Annotator "TA"]
[ECO "B06"]
[WhiteElo "1834"]
[BlackElo "2323"]
[PlyCount "76"]
[EventDate "2025.01.18"]
[EventType "swiss"]
[EventCountry "BRA"]
[SourceTitle "playchess.com"]
[Source "ChessBase"]
[SourceQuality "1"]
[TimeControl "180+2"]

{[%evp 9,76,30,41,33,29,15,32,18,25,-12,-4,0,31,18,26,6,23,0,0,0,0,-12,0,-53,-11,-44,-43,-104,-91,-118,-134,-291,-260,-289,-281,-277,-288,-274,-253,-273,-259,-355,-352,-370,-348,-425,-429,-500,-490,-469,-452,-473,-469,-431,-431,-532,-504,-539,-476,-876,-882,-871,-861,-835,-818,-612,-516,-588,-381]} 1. e4 {[%emt 0:00:01]} g6 {[%emt 0:00:01]} 2. d4 {[%emt 0:00:01]} Bg7 {[%emt 0:00:01]} 3. Nc3 {[%emt 0:00:01]} d6 {[%emt 0:00:01]} 4. Be3 {[%emt 0:00:02]} a6 {[%emt 0:00:01]} 5. Be2 {[%emt 0:00:03]} b5 {[%emt 0:00:04]} 6. a3 {[%emt 0:00:02]} Bb7 {[%emt 0:00:01]} 7. f3 {[%emt 0:00:05]} Nd7 {[%emt 0:00:02]} 8. Nh3 {[%emt 0:00:01]} c5 {[%emt 0:00:03]} 9. O-O {[%emt 0:00:07]} cxd4 {[%emt 0:00:09]} 10. Bxd4 {[%emt 0:00:01]} Bxd4+ {[%emt 0:00:24]} 11. Qxd4 {[%emt 0:00:02]} Qb6 {[%emt 0:00:00]} 12. Rfd1 {[%emt 0:00:06]} Ngf6 {[%emt 0:00:03]} 13. Nf2 {[%emt 0:00:03]} O-O {[%emt 0:00:11]} 14. Rd2 {[%emt 0:00:08]} Rfc8 {[%emt 0:00:08]} 15. Rad1 {[%emt 0:00:01]} Rc7 {[%emt 0:00:23]} 16. g4 {[%emt 0:00:27]} (16. Qxb6 $11 Nxb6 17. Rd4) 16... Rac8 {[%emt 0:00:12]} (16... g5 {feels hotter.} 17. Kg2 h5 18. h4 Qxd4 19. Rxd4 hxg4 20. hxg5 gxf3+ 21. Kxf3 Nh7) 17. Qxb6 {[%emt 0:00:08]} Nxb6 {[%emt 0:00:02]} 18. Nh3 {[%emt 0:00:14]} (18. Re1 $15) 18... Nfd7 {[%emt 0:00:09]} 19. Kf2 {[%emt 0:00:04]} Ne5 {[%emt 0:00:01]} 20. Rd4 $2 {[%emt 0:00:59]} (20. Rb1 $17) 20... Nec4 $19 {[%emt 0:00:05]} 21. Bxc4 {[%emt 0:00:27]} Nxc4 {[%emt 0:00:01]} 22. Rxc4 {[%emt 0:00:01]} Rxc4 {[%emt 0:00:05]} ({Don't play} 22... bxc4 23. Nf4 $19) 23. Nf4 {[%emt 0:00:02]} Rxc3 {[%emt 0:00:14]} 24. bxc3 {[%emt 0:00:01]} Rxc3 {[%emt 0:00:01][%mdl 4096] Endgame KRB-KRN. Black is a pawn up.} 25. Rd2 {[%emt 0:00:21]} Rxa3 {[%emt 0:00:01]} 26. Nd3 {[%emt 0:00:03]} a5 {[%emt 0:00:15]} 27. Ke3 {[%emt 0:00:03]} b4 {[%emt 0:00:11]} 28. Kd4 {[%emt 0:00:01]} Ba6 {[%emt 0:00:03]} 29. h4 {[%emt 0:00:12]} Bxd3 {[%emt 0:00:10]} 30. cxd3 {[%emt 0:00:02] KR-KR. Black is two pawns up.} b3 {[%emt 0:00:22] And now ...Ra2 would win.} 31. Kc3 {[%emt 0:00:02]} a4 {[%emt 0:00:09]} 32. f4 {[%emt 0:00:05]} Kf8 {[%emt 0:00:04]} 33. f5 {[%emt 0:00:02]} Ke8 {[%emt 0:00:02]} 34. h5 {[%emt 0:00:02]} (34. Re2 $142) 34... gxh5 {[%emt 0:00:02]} 35. gxh5 {[%emt 0:00:03]} h6 {[%emt 0:00:02]} 36. Rg2 {[%emt 0:00:02]} Kd7 {[%emt 0:00:07]} 37. d4 {[%emt 0:00:01]} Ra1 {[%emt 0:00:04]} 38. e5 {[%emt 0:00:05]} Rh1 {[%emt 0:00:08]} 0-1

[Event "BCS-Floripa Super Blitz 2025"]
[Site "Florianopolis"]
[Date "2025.01.22"]
[Round "5.11"]
[White "Saiz Rodriguez, Daniel Evelio"]
[Black "Lima, Stefan Moisei VIeira"]
[Result "1-0"]
[Annotator "TA"]
[ECO "A28"]
[WhiteElo "2172"]
[BlackElo "2312"]
[PlyCount "67"]
[EventDate "2025.01.18"]
[EventType "swiss"]
[EventCountry "BRA"]
[SourceTitle "playchess.com"]
[Source "ChessBase"]
[SourceQuality "1"]
[TimeControl "180+2"]

{[%evp 9,67,5,1,4,12,3,17,-9,10,0,0,-6,5,-16,-14,-3,-8,-20,-6,-22,-20,-53,-37,-106,-101,-141,-151,-134,-52,-70,-32,-54,-53,-59,0,0,0,-64,-62,-139,-4,-64,-24,-38,-41,-40,75,63,61,63,746,735,746,729,861,849,1536,1536,902,870]} 1. c4 {[%emt 0:00:01]} e5 {[%emt 0:00:01]} 2. Nc3 {[%emt 0:00:01]} Nf6 {[%emt 0:00:01]} 3. Nf3 {[%emt 0:00:01]} Nc6 {[%emt 0:00:01]} 4. e4 {[%emt 0:00:01]} Bb4 {[%emt 0:00:03][%cal Bf8b4,Bb4a5,Ba5b6][%mdl 32]} 5. d3 {[%emt 0:00:02]} d6 {[%emt 0:00:06]} 6. a3 {[%emt 0:00:01]} Ba5 {[%emt 0:00:03]} 7. b4 {[%emt 0:00:10]} Bb6 {[%emt 0:00:01]} 8. h3 {[%emt 0:00:04]} h6 {[%emt 0:00:01]} 9. Na4 {[%emt 0:00:10]} Bd4 {[%emt 0:00:02]} 10. Rb1 {[%emt 0:00:12]} a6 {[%emt 0:00:02]} 11. Nxd4 {[%emt 0:00:12]} Nxd4 {[%emt 0:00:17]} 12. Nc3 {[%emt 0:00:03]} b5 {[%emt 0:00:12]} 13. Ne2 {[%emt 0:00:19]} Ne6 {[%emt 0:00:17]} 14. Qc2 {[%emt 0:00:12]} Bb7 {[%emt 0:00:05]} 15. Be3 {[%emt 0:00:06]} bxc4 {[%emt 0:00:14]} 16. Qxc4 {[%emt 0:00:05]} (16. Ng3 $1 $15) 16... d5 $17 {[%emt 0:00:00]} 17. exd5 {[%emt 0:00:15]} Nxd5 {[%emt 0:00:03]} 18. Bc5 {[%emt 0:00:14]} Ndf4 {[%emt 0:00:13]} (18... Nb6 $17 19. Qb3 Nd7) 19. Nxf4 $15 {[%emt 0:00:16]} Nxf4 {[%emt 0:00:02]} 20. Rg1 {[%emt 0:00:20]} Qd7 {[%emt 0:00:25]} 21. g3 {[%emt 0:00:15]} Nxh3 {[%emt 0:00:25]} (21... Ne6 $15) 22. Bxh3 $11 {[%emt 0:00:01]} Qxh3 {[%emt 0:00:02]} 23. Rc1 {[%emt 0:00:20]} ({White should play} 23. b5 $11) 23... Qd7 {[%emt 0:00:14]} 24. Ke2 {[%emt 0:00:09]} (24. f4 $15) 24... f5 {[%emt 0:00:33]} (24... Bd5 $17 25. Qh4 g5) 25. g4 {[%emt 0:00:06]} (25. Rge1 $11) 25... g5 {[%emt 0:00:12]} (25... fxg4 {simplifies} 26. Qxg4 Qxg4+ 27. Rxg4 g5) 26. gxf5 {[%emt 0:00:07]} Qxf5 {[%emt 0:00:01]} 27. Rg3 $1 {[%emt 0:00:00]} O-O-O {[%emt 0:00:09]} (27... Rh7 $15 {stays ahead.}) 28. Bb6 $16 {[%emt 0:00:03][%csl Gb6,Gc1][%cal Rc4c7,Bc5b6,Bb6c7,Bc7e5,Be5h8,Bh8d4][%mdl 32] Some like it hot} Rd7 {[%emt 0:00:02] White must now prevent ...Rf8.} 29. Bxc7 {[%emt 0:00:01]} Qf7 $2 {[%emt 0:00:09][%mdl 8192]} ({Avoid the trap} 29... Rd4 $2 30. Qc5 (30. Bxe5+ Rxc4 31. Rxc4+ Bc6 $14) 30... Kd7 (30... Rd5 $2 31. Qb6 $18) 31. Bxe5 $18 (31. Qxe5 $2 {is the wrong capture.} Re8 $19)) (29... Re8 $14) 30. Bxe5+ $18 {[%emt 0:00:03]} Qxc4 {[%emt 0:00:03]} 31. Rxc4+ {[%emt 0:00:01]} Kd8 {[%emt 0:00:00]} 32. Bxh8 {[%emt 0:00:01]} Rd5 {[%emt 0:00:03]} 33. Rd4 {[%emt 0:00:01]} Rxd4 {[%emt 0:00:02]} 34. Bxd4 {[%emt 0:00:01]} 1-0

[Event "BCS-Floripa Super Blitz 2025"]
[Site "Florianopolis"]
[Date "2025.01.22"]
[Round "5.11"]
[White "Lorenzon, Eduardo Lucas"]
[Black "Soares, Rafael Tuma"]
[Result "1-0"]
[Annotator "TA"]
[ECO "B66"]
[WhiteElo "2039"]
[BlackElo "1932"]
[PlyCount "95"]
[EventDate "2025.01.18"]
[EventType "swiss"]
[EventCountry "BRA"]
[SourceTitle "playchess.com"]
[Source "ChessBase"]
[SourceQuality "1"]
[TimeControl "180+2"]

{[%evp 16,95,47,45,52,40,30,13,13,14,13,14,14,16,10,12,12,12,13,9,12,10,46,43,144,162,150,160,225,230,348,354,372,363,375,319,404,409,390,371,353,350,431,353,375,367,435,387,497,500,617,579,691,634,635,567,621,614,681,636,629,618,656,604,1172,1063,1155,833,1035,963,1143,1125,993,941,29980,29981,29985,29986,29988,29989,29989,29990]} 1. e4 {[%emt 0:00:02]} c5 {[%emt 0:00:00]} 2. Nf3 {[%emt 0:00:02]} d6 {[%emt 0:00:01]} 3. d4 {[%emt 0:00:01]} cxd4 {[%emt 0:00:00]} 4. Nxd4 {[%emt 0:00:01]} Nf6 {[%emt 0:00:01]} 5. Nc3 {[%emt 0:00:01]} a6 {[%emt 0:00:01]} 6. Bg5 {[%emt 0:00:02]} e6 {[%emt 0:00:02][%cal Be7e6,Be6e5][%mdl 32]} 7. Qd2 {[%emt 0:00:02]} Nc6 {[%emt 0:00:02]} 8. O-O-O {[%emt 0:00:03]} h6 {[%emt 0:00:07]} 9. Be3 {[%emt 0:00:02]} e5 {[%emt 0:00:05]} 10. Nxc6 {[%emt 0:00:16]} bxc6 {[%emt 0:00:01]} 11. Bc5 {[%emt 0:00:11][%cal Rc5d6]} Bg4 {[%emt 0:00:37][%cal Og4d1]} 12. f3 $1 {[%emt 0:00:24]} (12. Bxd6 Bxd1 13. Bxf8 Qxd2+ 14. Kxd2 Kxf8 $17 (14... Rxf8 15. Kxd1 a5 16. f3 $15)) 12... dxc5 {[%emt 0:00:00]} 13. Qxd8+ {[%emt 0:00:07]} Rxd8 {[%emt 0:00:01]} 14. Rxd8+ {[%emt 0:00:01]} Kxd8 {[%emt 0:00:01]} 15. fxg4 {[%emt 0:00:02]} Nxg4 {[%emt 0:00:03]} 16. Bxa6 {[%emt 0:00:03]} Be7 {[%emt 0:00:10]} 17. Kd2 {[%emt 0:00:20]} Bg5+ {[%emt 0:00:03]} 18. Ke2 {[%emt 0:00:01]} Ke7 {[%emt 0:00:05]} 19. h3 {[%emt 0:00:14][%cal Bh2h3,Bh3h4][%mdl 32]} Ne3 {[%emt 0:00:01]} ({Better is} 19... Nf6 $1 $14) 20. h4 $16 {[%emt 0:00:07]} Bf4 {[%emt 0:00:03]} 21. g3 $1 {[%emt 0:00:04]} Nxc2 {[%emt 0:00:02]} (21... Ra8 $16) 22. gxf4 $18 {[%emt 0:00:02]} Nd4+ {[%emt 0:00:01]} (22... exf4 $142 23. Kf3 Rb8 24. Kxf4 Rxb2) 23. Ke3 {[%emt 0:00:07]} exf4+ {[%emt 0:00:01]} 24. Kxf4 {[%emt 0:00:02]} g5+ {[%emt 0:00:01]} 25. Ke3 {[%emt 0:00:03]} (25. hxg5 $2 {perishes.} hxg5+ 26. Kxg5 Rxh1 $19) 25... g4 {[%emt 0:00:01]} 26. h5 {[%emt 0:00:05]} Rg8 {[%emt 0:00:01]} 27. Rg1 {[%emt 0:00:04]} Rg5 {[%emt 0:00:01]} 28. Ne2 {[%emt 0:00:11]} Nf3 {[%emt 0:00:01]} 29. Rg3 {[%emt 0:00:06]} Ne5 {[%emt 0:00:04]} 30. Nf4 {[%emt 0:00:05]} Rg8 {[%emt 0:00:05]} 31. Be2 {[%emt 0:00:08]} Kf6 {[%emt 0:00:15]} 32. Nd3 {[%emt 0:00:12]} Nc4+ {[%emt 0:00:01]} 33. Kf4 {[%emt 0:00:02]} Ra8 {[%emt 0:00:14]} 34. e5+ {[%emt 0:00:06]} Ke7 {[%emt 0:00:02]} 35. a3 {[%emt 0:00:04]} Rb8 {[%emt 0:00:01]} 36. Rxg4 {[%emt 0:00:04]} Nxb2 {[%emt 0:00:03]} 37. Nxb2 {[%emt 0:00:02]} Rxb2 {[%emt 0:00:01][%mdl 4096] Endgame KRB-KR} 38. Bc4 {[%emt 0:00:14]} Rc2 {[%emt 0:00:01]} 39. Kf5 {[%emt 0:00:04]} Rf2+ {[%emt 0:00:05]} 40. Rf4 {[%emt 0:00:02]} Rg2 {[%emt 0:00:02]} 41. Ke4 {[%emt 0:00:02][%cal Oa3a4] a4! is the strong threat.} Rg5 {[%emt 0:00:12]} 42. Rxf7+ {[%emt 0:00:02]} Ke8 {[%emt 0:00:00]} 43. Rf5 {[%emt 0:00:03] Intending Rxg5 and mate.} Rg4+ {[%emt 0:00:02]} 44. Rf4 {[%emt 0:00:01]} Rg5 {[%emt 0:00:00]} 45. a4 {[%emt 0:00:04][%cal Ba3a4,Ba4a5,Ba5a6][%mdl 32]} Ke7 {[%emt 0:00:01]} 46. a5 {[%emt 0:00:02]} Rxh5 {[%emt 0:00:03]} 47. a6 {[%emt 0:00:03]} Rh1 {[%emt 0:00:03]} 48. Rf7+ {[%emt 0:00:02]} 1-0